bitfinex/quotes_BTCUSD_20250114
["timestamp","ask_amount","ask_price","bid_price","bid_amount"]
[1736886251120,0.206336,96930.0,96896.0,0.56231025]
[1736886251323,0.206336,96930.0,96896.0,0.58347347]
[1736886252448,0.206347,96925.0,96896.0,0.58347347]
[1736886252879,0.32943776,96930.0,96896.0,0.58347347]
[1736886253095,0.306283,96955.0,96896.0,0.68347347]
[1736886253337,0.00128961,96944.0,96896.0,0.77207904]
[1736886253559,0.206281,96955.0,96909.0,0.683079]
[1736886253783,0.01549059,96910.0,96909.0,0.85561382]
[1736886253994,0.01549059,96910.0,96909.0,1.01042882]
[1736886254863,0.01549059,96910.0,96909.0,1.02098358]
[1736886255073,0.01549059,96910.0,96909.0,1.02998358]
[1736886255300,0.20700945,96960.0,96909.0,1.02998358]
[1736886255301,0.00073845,96960.0,96933.0,0.1]
[1736886255517,0.00123362,96960.0,96946.0,0.12310176]
[1736886255728,0.00049517,96960.0,96948.0,0.0207346]
[1736886255939,0.00049517,96960.0,96951.0,0.206287]
[1736886256176,0.00049517,96960.0,96953.0,0.206285]
[1736886256385,0.00049517,96960.0,96954.0,0.12714961]
[1736886256797,0.00049517,96960.0,96955.0,0.20628]
[1736886257004,0.00049517,96960.0,96957.0,0.206277]
[1736886257227,0.00049517,96960.0,96959.0,0.206272]
[1736886257439,0.00049517,96960.0,96959.0,0.38899892]
[1736886257653,0.00049517,96960.0,96959.0,0.57967625]
[1736886257864,1.7e-07,96960.0,96959.0,0.67967625]
[1736886258071,1.7e-07,96960.0,96959.0,0.82837625]
[1736886258753,1.7e-07,96960.0,96959.0,2.33457625]
[1736886259903,1.7e-07,96960.0,96959.0,2.34357625]
[1736886260286,1.7e-07,96960.0,96959.0,2.34157625]
[1736886260427,1.7e-07,96960.0,96959.0,2.35057625]
[1736886260836,1.7e-07,96960.0,96959.0,0.85057625]
[1736886261054,1.7e-07,96960.0,96959.0,0.84357625]
[1736886261253,1.7e-07,96960.0,96959.0,0.84157625]
[1736886261671,1.7e-07,96960.0,96959.0,0.85057625]
[1736886261870,1.7e-07,96960.0,96959.0,0.74437625]
[1736886262711,1.7e-07,96960.0,96959.0,0.73737625]
[1736886263041,1.7e-07,96960.0,96959.0,0.73637625]
[1736886263249,1.7e-07,96960.0,96959.0,0.74537625]
[1736886263458,1.7e-07,96960.0,96959.0,0.83737625]
[1736886263669,0.0008535,96994.0,96977.0,0.1]
[1736886263893,0.0008535,96994.0,96966.0,0.206255]
[1736886263894,0.0008535,96994.0,96993.0,0.2062]
[1736886264123,0.00100201,96994.0,96993.0,0.31042692]
[1736886264330,0.00073845,97011.0,96993.0,0.31042692]
[1736886264331,0.206132,97025.0,96998.0,0.206188]
[1736886264535,0.00128854,97024.0,96999.0,0.10422692]
[1736886265004,0.206136,97023.0,97001.0,0.206182]
[1736886265200,0.20614,97021.0,96999.0,0.10422692]
[1736886265380,0.00128854,97020.0,96999.0,0.10422692]
[1736886265619,0.00128854,97020.0,97000.0,0.206185]
[1736886265797,0.206145,97019.0,97000.0,0.10422692]
[1736886266033,0.00128854,97020.0,97000.0,0.10422692]
[1736886266160,0.01720048,97020.0,97001.0,0.206183]
[1736886266372,0.01710048,97020.0,97001.0,0.206183]
[1736886266620,0.01710048,97020.0,97000.0,0.10422692]
[1736886266821,0.206145,97019.0,96995.0,0.206195]
[1736886267023,0.206149,97017.0,96996.0,0.10422692]
[1736886267183,0.206153,97015.0,96993.0,0.02048227]
[1736886267383,0.00118864,97014.0,96992.0,0.15]
[1736886267611,0.00118864,97014.0,96993.0,0.2062]
[1736886268038,0.206157,97013.0,96992.0,0.15]
[1736886268240,0.206162,97011.0,96992.0,0.15]
[1736886268446,0.00118867,97010.0,96989.0,0.15]
[1736886268648,0.206166,97009.0,96991.0,0.15]
[1736886268823,0.00118868,97009.0,96985.0,0.22738066]
[1736886269023,0.206162,97011.0,96987.0,0.206213]
[1736886269024,0.00118868,97008.0,96987.0,0.206213]
[1736886269392,0.22690507,97007.0,96987.0,0.31043992]
[1736886269600,0.00118872,97006.0,96987.0,0.31043992]
[1736886269838,0.00118872,97006.0,96991.0,0.412408]
[1736886270045,0.024101,97018.0,96996.0,0.206193]
[1736886270296,0.024101,97018.0,96991.0,0.001]
[1736886270297,0.206136,97023.0,96997.0,0.10422692]
[1736886270539,0.00128856,97022.0,96997.0,0.10422692]
[1736886270775,0.00214106,97024.0,97005.0,0.206174]
[1736886270976,0.00214106,97024.0,97009.0,0.206164]
[1736886271239,0.00128852,97023.0,97006.0,0.206171]
[1736886271739,0.20742552,97023.0,97006.0,0.206171]
[1736886271937,0.21575446,97023.0,97002.0,0.206179]
[1736886272101,0.21446594,97023.0,97003.0,0.10422692]
[1736886272353,0.20614,97021.0,97003.0,0.10422692]
[1736886272557,0.00128849,97022.0,97004.0,0.206177]
[1736886272778,0.00128849,97022.0,96997.0,0.20619]
[1736886272779,0.02977553,97021.0,96997.0,0.20619]
[1736886272982,0.00128861,97020.0,96996.0,0.23712528]
[1736886273194,0.206152,97016.0,96997.0,0.206191]
[1736886273396,0.206155,97014.0,96996.0,0.2267546]
[1736886273557,0.02465229,97020.0,96996.0,0.0205616]
[1736886273558,0.0012886,97013.0,96996.0,0.0205616]
[1736886273778,0.206169,97008.0,96996.0,0.0205616]
[1736886274018,0.206162,97011.0,96996.0,0.0205616]
[1736886274252,0.20745264,97010.0,96996.0,0.0205616]
[1736886274434,0.20617,97008.0,96996.0,0.0205616]
[1736886274625,0.206172,97006.0,96996.0,0.0205616]
[1736886274868,0.206177,97004.0,96987.0,0.206212]
[1736886275107,0.206177,97004.0,96978.0,0.281732]
[1736886275108,0.0012888,97003.0,96996.0,0.002]
[1736886275326,0.0062,97017.0,96996.0,0.002]
[1736886275537,0.0062,97017.0,97005.0,0.206174]
[1736886275739,0.0062,97017.0,97000.0,0.18398597]
[1736886275956,0.20614,97021.0,97006.0,0.206171]
[1736886276126,0.206131,97026.0,97006.0,0.206171]
[1736886276393,0.206136,97023.0,97007.0,0.206169]
[1736886276598,0.20742455,97023.0,97004.0,0.206177]
[1736886276804,0.00014834,97025.0,97010.0,0.18398597]
[1736886277189,0.00014834,97025.0,97015.0,0.206153]
[1736886277578,0.00014834,97025.0,97011.0,0.206161]
[1736886277802,0.00014834,97025.0,97007.0,0.01056927]
[1736886277958,0.00014834,97025.0,97008.0,0.10422692]
[1736886278163,0.00014834,97025.0,97013.0,0.206157]
[1736886279345,0.00014834,97025.0,97014.0,0.206155]
[1736886279551,0.00014834,97025.0,97013.0,0.10522692]
[1736886279750,0.00014834,97025.0,97014.0,0.206155]
[1736886282163,0.00014834,97025.0,97023.0,0.02096823]
[1736886282853,0.00014834,97025.0,97014.0,0.206155]
[1736886283090,0.00014834,97025.0,97014.0,0.41331]
[1736886283382,0.00014834,97025.0,97021.0,0.02090834]
[1736886283930,0.00014834,97025.0,97023.0,0.001]
[1736886285305,0.04230643,97024.0,97023.0,0.001]
[1736886285644,0.04230643,97024.0,97017.0,0.0208753]
[1736886285866,0.206136,97023.0,97006.0,0.15]
[1736886286064,0.206136,97023.0,97021.0,0.001]
[1736886286593,0.206136,97023.0,97006.0,0.26480132]
[1736886286811,0.206136,97023.0,97007.0,0.20617]
[1736886287841,0.04230643,97024.0,97007.0,0.20617]
[1736886288182,0.0008525,97024.0,97011.0,0.206161]
[1736886288638,0.0008525,97024.0,97021.0,0.001]
[1736886288868,0.20742447,97023.0,97021.0,0.001]
[1736886289089,0.00460632,97022.0,97006.0,0.1605744]
[1736886289296,0.00128852,97021.0,97007.0,0.20617]
[1736886289673,0.00460485,97020.0,97007.0,0.20617]
[1736886291465,0.00460485,97020.0,97008.0,0.03214069]
[1736886291680,0.00460485,97020.0,97007.0,0.20617]
[1736886291848,0.00460485,97020.0,97008.0,0.03214078]
[1736886292011,0.00460485,97020.0,97009.0,0.206166]
[1736886292241,0.00460485,97020.0,97007.0,0.20717]
[1736886292513,0.00460485,97020.0,97008.0,0.03216318]
[1736886292682,0.00460485,97020.0,97016.0,0.02023564]
[1736886293087,0.00128851,97022.0,97016.0,0.02023564]
[1736886293341,0.00460205,97021.0,97016.0,0.02023564]
[1736886293779,0.00128851,97022.0,97016.0,0.02023564]
[1736886294217,0.00461209,97021.0,97016.0,0.02023564]
[1736886294441,0.00461209,97021.0,97008.0,0.207167]
[1736886294606,0.00590061,97021.0,97008.0,0.206167]
[1736886294757,0.00590061,97021.0,97016.0,0.001]
[1736886294991,0.020976,97021.0,97016.0,0.001]
[1736886295227,0.00461136,97020.0,97008.0,0.206167]
[1736886295434,0.00461136,97020.0,97012.0,0.206159]
[1736886295633,0.00214051,97023.0,97012.0,0.206159]
[1736886295876,0.00463033,97022.0,97012.0,0.206159]
[1736886296315,0.00591884,97022.0,97012.0,0.206159]
[1736886296992,0.00591884,97022.0,97006.0,0.0105744]
[1736886296993,0.04200297,97021.0,97006.0,0.206171]
[1736886297234,0.04329149,97021.0,97007.0,0.03217859]
[1736886297462,0.00462886,97020.0,97008.0,0.206168]
[1736886297702,0.04329149,97021.0,97008.0,0.206168]
[1736886298613,0.04329149,97021.0,97011.0,0.206161]
[1736886298847,0.04200297,97021.0,97011.0,0.206161]
[1736886299323,0.00214051,97023.0,97011.0,0.206161]
[1736886299464,0.00128851,97022.0,97016.0,0.02065565]
[1736886299691,0.0021405,97023.0,97016.0,0.02065565]
[1736886299917,0.0059169,97022.0,97016.0,0.02065565]
[1736886300137,0.0046284,97022.0,97016.0,0.02065565]
[1736886300570,0.000852,97023.0,97021.0,0.20614]
[1736886301404,0.002,97022.0,97021.0,0.20614]
[1736886301605,0.000852,97023.0,97021.0,0.20614]
[1736886302047,0.002852,97023.0,97021.0,0.20614]
[1736886302253,0.000852,97023.0,97021.0,0.20614]
[1736886302465,0.002,97022.0,97021.0,0.20614]
[1736886302657,0.002,97022.0,97021.0,0.002]
[1736886303372,0.02299858,97022.0,97021.0,0.002]
[1736886303580,0.00810027,97022.0,97021.0,0.002]
[1736886303789,0.00610027,97022.0,97021.0,0.002]
[1736886303999,0.00481185,97022.0,97021.0,0.002]
[1736886304409,0.00481185,97022.0,97021.0,0.004]
[1736886304955,0.00481185,97022.0,97012.0,0.206159]
[1736886305150,0.00481185,97022.0,97015.0,0.206152]
[1736886305361,0.00581185,97022.0,97015.0,0.206152]
[1736886305576,0.00581185,97022.0,97019.0,0.206143]
[1736886305777,0.00581185,97022.0,97021.0,0.20614]
[1736886306001,0.00581185,97022.0,97021.0,0.51314244]
[1736886306238,0.001,97022.0,97021.0,0.51314244]
[1736886306860,0.000852,97023.0,97022.0,0.15]
[1736886307065,0.000852,97023.0,97022.0,0.36423311]
[1736886307284,0.000852,97023.0,97022.0,0.3850744]
[1736886308343,0.000852,97023.0,97022.0,0.3990744]
[1736886308776,0.000852,97023.0,97022.0,0.58424812]
[1736886309713,0.000852,97023.0,97022.0,0.3990744]
[1736886310762,0.000852,97023.0,97022.0,0.34602692]
[1736886311206,0.000852,97023.0,97022.0,0.014]
[1736886312082,0.000852,97023.0,97022.0,0.009]
[1736886312324,0.000852,97023.0,97022.0,0.011]
[1736886312825,0.000852,97023.0,97022.0,0.59216492]
[1736886312826,0.00579247,97023.0,97022.0,0.59216492]
[1736886313056,0.000852,97023.0,97022.0,0.69261071]
[1736886313338,0.000852,97023.0,97022.0,0.68361071]
[1736886313634,0.000852,97023.0,97022.0,0.31036492]
[1736886313836,0.000852,97023.0,97022.0,0.31336492]
[1736886314059,0.000852,97023.0,97022.0,0.31036492]
[1736886314281,0.000852,97023.0,97022.0,0.213138]
[1736886314496,0.000852,97023.0,97022.0,0.207138]
[1736886314715,0.000852,97023.0,97022.0,0.206138]
[1736886314924,0.000852,97023.0,97022.0,0.37830802]
[1736886315629,0.000852,97023.0,97022.0,0.31636492]
[1736886319527,0.000852,97023.0,97022.0,0.006]
[1736886320023,0.0057872,97023.0,97022.0,0.006]
[1736886320563,0.0057872,97023.0,97020.0,0.00179256]
[1736886321078,0.0057872,97023.0,97022.0,0.001]
[1736886321534,0.0057872,97023.0,97020.0,0.00179256]
[1736886322001,0.0057872,97023.0,97020.0,0.00279256]
[1736886322981,0.000852,97023.0,97020.0,0.00279256]
[1736886323213,0.000852,97023.0,97020.0,0.00179256]
[1736886323428,0.00491361,97022.0,97020.0,0.00179256]
[1736886323834,0.04694529,97022.0,97020.0,0.00179256]
[1736886324471,0.00491361,97022.0,97020.0,0.00279256]
[1736886324887,0.00491361,97022.0,97020.0,0.00179256]
[1736886325322,0.00491361,97022.0,97020.0,0.00279256]
[1736886326297,0.00128839,97021.0,97020.0,0.00279256]
[1736886326655,0.00617469,97021.0,97020.0,0.00279256]
[1736886326852,0.04112459,97021.0,97020.0,0.00279256]
[1736886327124,0.04112459,97021.0,97020.0,0.00179256]
[1736886327354,0.04112459,97021.0,97020.0,0.00279256]
[1736886327557,0.00617469,97021.0,97020.0,0.00379256]
[1736886327997,0.00617469,97021.0,97020.0,0.00279256]
[1736886328717,0.13340161,97021.0,97020.0,0.00279256]
[1736886328917,0.25420161,97021.0,97020.0,0.00279256]
[1736886329162,0.26321008,97021.0,97020.0,0.00279256]
[1736886329884,0.1256863,97021.0,97020.0,0.00179256]
[1736886330103,0.0048863,97021.0,97020.0,0.00179256]
[1736886330815,0.0068863,97021.0,97020.0,0.00279256]
[1736886331043,0.0048863,97021.0,97020.0,0.00179256]
[1736886331268,0.0058863,97021.0,97020.0,0.20793556]
[1736886331490,0.0048863,97021.0,97020.0,0.37418654]
[1736886331999,0.0048863,97021.0,97020.0,0.37518654]
[1736886332215,0.0001,97022.0,97020.0,0.37518654]
[1736886332446,0.0001,97022.0,97021.0,0.10422692]
[1736886332721,0.0001,97022.0,97021.0,0.18432692]
[1736886333182,0.0001,97022.0,97021.0,0.24532449]
[1736886333441,0.0001,97022.0,97021.0,0.39532449]
[1736886334129,0.0001,97022.0,97021.0,0.007]
[1736886334381,0.0001,97022.0,97021.0,0.004]
[1736886334908,0.00138841,97022.0,97021.0,0.004]
[1736886335133,0.00501892,97022.0,97020.0,0.00179256]
[1736886335360,0.20614,97021.0,97020.0,0.00179256]
[1736886335576,0.27371466,97021.0,97020.0,0.00179256]
[1736886336768,0.21105804,97021.0,97020.0,0.00179256]
[1736886336971,0.21234664,97021.0,97020.0,0.00179256]
[1736886337397,0.00691804,97021.0,97020.0,0.00179256]
[1736886337818,0.00491804,97021.0,97020.0,0.00179256]
[1736886338032,0.00691804,97021.0,97020.0,0.00179256]
[1736886338239,0.00491804,97021.0,97020.0,0.00179256]
[1736886338455,0.0001,97022.0,97020.0,0.00179256]
[1736886338456,0.0001,97022.0,97020.0,0.02258672]
[1736886338652,0.0001,97022.0,97020.0,0.00179256]
[1736886339269,0.0008536,97021.0,97020.0,0.00179256]
[1736886339655,0.0028536,97021.0,97020.0,0.00179256]
[1736886340184,0.0008536,97021.0,97020.0,0.00179256]
[1736886340408,0.0008536,97021.0,97020.0,0.00279256]
[1736886340733,0.0008536,97021.0,97020.0,0.00479256]
[1736886340950,0.0008536,97021.0,97020.0,0.00679256]
[1736886341581,0.00702112,97021.0,97020.0,0.00679256]
[1736886342386,0.00573263,97021.0,97020.0,0.00679256]
[1736886343214,0.00573263,97021.0,97020.0,0.00379256]
[1736886343680,0.00573263,97021.0,97020.0,0.00279256]
[1736886344096,0.02811398,97021.0,97020.0,0.00279256]
[1736886344296,0.02811398,97021.0,97020.0,0.00179256]
[1736886345172,0.23425398,97021.0,97020.0,0.00179256]
[1736886347525,0.3614809,97021.0,97020.0,0.00179256]
[1736886348711,0.46489955,97021.0,97020.0,0.00179256]
[1736886349301,0.46389955,97021.0,97020.0,0.00179256]
[1736886349508,0.46689955,97021.0,97020.0,0.00179256]
[1736886349930,0.46389955,97021.0,97020.0,0.00179256]
[1736886350139,0.46689955,97021.0,97020.0,0.00279256]
[1736886350731,0.47701483,97021.0,97020.0,0.00279256]
[1736886350976,0.58124175,97021.0,97020.0,0.00279256]
[1736886351190,0.68124175,97021.0,97020.0,0.00279256]
[1736886351338,0.47701483,97021.0,97020.0,0.00279256]
[1736886358489,0.47701483,97021.0,97007.0,0.0017892]
[1736886358490,0.382368,97008.0,97007.0,0.0017892]
[1736886358718,0.42052955,97008.0,97007.0,0.0017892]
[1736886359883,0.42352955,97008.0,97007.0,0.0027892]
[1736886360104,0.42052955,97008.0,97007.0,0.0017892]
[1736886360322,0.47258996,97008.0,97007.0,0.0027892]
[1736886360735,0.47158996,97008.0,97007.0,0.0017892]
[1736886362116,0.47958996,97008.0,97007.0,0.0027892]
[1736886363808,0.57958996,97008.0,97007.0,0.0027892]
[1736886364216,0.206177,97004.0,97003.0,0.0010784]
[1736886364423,0.39208591,97004.0,97003.0,0.0010784]
[1736886364605,0.64549871,97004.0,97003.0,0.0010784]
[1736886365727,0.65149871,97004.0,97003.0,0.0020784]
[1736886366396,0.79969871,97004.0,97003.0,0.0020784]
[1736886367007,0.206203,96992.0,96969.0,0.0829]
[1736886367198,0.1,96994.0,96969.0,0.0829]
[1736886367199,0.206238,96975.0,96969.0,0.0829]
[1736886367417,0.0012891,96988.0,96969.0,0.0829]
[1736886367650,0.20624,96975.0,96969.0,0.0829]
[1736886368495,0.20624,96975.0,96969.0,0.08304851]
[1736886368612,0.20624,96975.0,96969.0,0.08804851]
[1736886368850,0.0412472,96974.0,96969.0,0.08304851]
[1736886370116,0.2474892,96974.0,96969.0,0.08404851]
[1736886370517,0.206249,96970.0,96969.0,0.00114851]
[1736886370727,0.51596523,96970.0,96969.0,0.00114851]
[1736886370901,0.51467592,96970.0,96969.0,0.00114851]
[1736886371105,0.76151663,96970.0,96969.0,0.00114851]
[1736886371303,0.76151663,96970.0,96969.0,4.851e-05]
[1736886371984,0.76151663,96970.0,96969.0,0.00104851]
[1736886372282,0.76151663,96970.0,96959.0,0.00179025]
[1736886372283,0.30627,96960.0,96959.0,0.00179025]
[1736886372481,0.50894992,96960.0,96959.0,0.00019025]
[1736886372741,0.41049692,96960.0,96959.0,0.00019025]
[1736886372945,0.58969692,96960.0,96959.0,0.00019025]
[1736886373511,0.48349692,96960.0,96959.0,0.00019025]
[1736886373731,0.48969692,96960.0,96959.0,0.00019025]
[1736886374046,0.49269692,96960.0,96959.0,0.00019025]
[1736886374223,0.34269692,96960.0,96959.0,0.00019025]
[1736886374693,0.20627,96960.0,96959.0,0.00019025]
[1736886374903,0.21547,96960.0,96959.0,0.00019025]
[1736886375327,0.003,96960.0,96959.0,0.00019025]
[1736886375532,0.01328933,96960.0,96959.0,0.00119025]
[1736886375741,0.00428933,96960.0,96959.0,0.00019025]
[1736886375937,0.00428933,96960.0,96959.0,0.00119025]
[1736886376145,0.00728933,96960.0,96959.0,0.00119025]
[1736886376350,0.00128933,96960.0,96959.0,0.00019025]
[1736886376562,0.00328933,96960.0,96959.0,0.00019025]
[1736886376767,0.01128933,96960.0,96959.0,0.00119025]
[1736886377002,0.00128933,96960.0,96959.0,0.00019025]
[1736886377176,0.00528933,96960.0,96959.0,0.00019025]
[1736886377427,0.00628933,96960.0,96959.0,0.00019025]
[1736886378221,0.17601808,96960.0,96959.0,0.00019025]
[1736886379317,0.42601808,96960.0,96959.0,0.00019025]
[1736886379496,0.50272875,96960.0,96959.0,0.00019025]
[1736886380334,0.51319779,96960.0,96959.0,0.00019025]
[1736886380566,0.51219779,96960.0,96959.0,0.00019025]
[1736886380747,0.51619779,96960.0,96959.0,0.00019025]
[1736886380951,0.30189596,96960.0,96959.0,0.00019025]
[1736886381580,0.29789596,96960.0,96959.0,0.00019025]
[1736886382198,0.39789596,96960.0,96959.0,0.00019025]
[1736886382353,0.40289596,96960.0,96959.0,0.00019025]
[1736886382550,0.27369596,96960.0,96959.0,0.00019025]
[1736886382773,0.36151846,96960.0,96959.0,0.00019025]
[1736886383316,0.38151846,96960.0,96959.0,0.00019025]
[1736886383652,0.48551846,96960.0,96959.0,0.00019025]
[1736886384304,0.38551846,96960.0,96959.0,0.00019025]
[1736886384505,0.48551846,96960.0,96959.0,0.00019025]
[1736886384855,0.38551846,96960.0,96959.0,0.00019025]
[1736886385065,0.48551846,96960.0,96959.0,0.00019025]
[1736886385276,0.38551846,96960.0,96959.0,0.00019025]
[1736886385509,0.29642692,96960.0,96959.0,0.00019025]
[1736886386313,0.29022692,96960.0,96959.0,0.00019025]
[1736886386448,0.29642692,96960.0,96959.0,0.00019025]
[1736886387809,0.29728102,96960.0,96959.0,0.00019025]
[1736886388268,0.48927682,96960.0,96959.0,0.00019025]
[1736886388724,0.023,96937.0,96920.0,0.0804]
[1736886388891,0.206349,96923.0,96922.0,0.00149235]
[1736886389090,0.212549,96923.0,96922.0,0.00149235]
[1736886389237,0.33977592,96923.0,96922.0,0.00149235]
[1736886390114,0.33977592,96923.0,96922.0,0.00198752]
[1736886391377,0.33977592,96923.0,96902.0,0.1281]
[1736886391378,0.206377,96910.0,96902.0,0.1281]
[1736886391639,0.20766695,96910.0,96902.0,0.1281]
[1736886391785,0.206377,96910.0,96902.0,0.1281]
[1736886392211,0.206377,96910.0,96902.0,0.0804]
[1736886392613,0.206377,96910.0,96909.0,0.00379235]
[1736886393383,0.20636,96918.0,96909.0,0.00379235]
[1736886393612,0.00128992,96917.0,96909.0,0.00379235]
[1736886394215,0.206377,96910.0,96909.0,0.00379235]
[1736886394413,0.004,96910.0,96909.0,0.00379235]
[1736886394627,0.206368,96914.0,96909.0,0.00379235]
[1736886395065,0.206368,96914.0,96909.0,0.00179235]
[1736886395524,0.001,96910.0,96909.0,0.00179235]
[1736886395738,0.002,96910.0,96909.0,0.00179235]
[1736886395928,0.206368,96915.0,96909.0,0.00179235]
[1736886396489,0.412736,96914.0,96909.0,0.00279235]
[1736886396728,0.0062,96919.0,96909.0,0.00279235]
[1736886396953,0.206377,96910.0,96909.0,0.00179235]
[1736886398319,0.20866697,96910.0,96909.0,0.00179235]
[1736886398494,0.20866704,96910.0,96909.0,0.00179235]
[1736886399133,0.20766704,96910.0,96909.0,0.00179235]
[1736886399336,0.21066704,96910.0,96909.0,0.00179235]
[1736886400185,0.38062848,96910.0,96909.0,0.00179235]
[1736886400428,0.37933844,96910.0,96909.0,0.00179235]
[1736886400890,0.37633844,96910.0,96909.0,0.00179235]
[1736886401386,0.38133844,96910.0,96909.0,0.00179235]
[1736886402681,0.33860392,96910.0,96909.0,0.00179235]
[1736886402891,0.34480392,96910.0,96909.0,0.00179235]
[1736886404361,0.005,96910.0,96909.0,0.00179235]
[1736886406397,0.1335169,96910.0,96909.0,0.00179235]
[1736886415161,0.02928998,96910.0,96909.0,0.00179235]
[1736886415485,0.005,96910.0,96909.0,0.00179235]
[1736886416276,0.1760401,96910.0,96909.0,0.00179235]
[1736886419648,0.1335169,96910.0,96909.0,0.00179235]
[1736886420368,0.005,96910.0,96909.0,0.00179235]
[1736886420602,0.005,96910.0,96909.0,0.08179235]
[1736886421232,0.004,96910.0,96909.0,0.08179235]
[1736886421433,0.206357,96919.0,96909.0,0.08179235]
[1736886421638,0.001,96910.0,96909.0,0.08179235]
[1736886422017,0.0207366,96910.0,96909.0,0.08179235]
[1736886422648,0.0207366,96910.0,96909.0,0.08279235]
[1736886423858,0.0207366,96910.0,96909.0,0.08379235]
[1736886424029,0.0207366,96910.0,96909.0,0.08179235]
[1736886424491,0.0217366,96910.0,96909.0,0.08179235]
[1736886424911,0.0217366,96910.0,96909.0,0.08279235]
[1736886426107,0.0217366,96910.0,96909.0,0.00279235]
[1736886426304,0.001,96910.0,96909.0,0.00279235]
[1736886426510,0.10651688,96910.0,96909.0,0.00279235]
[1736886427814,0.001,96910.0,96909.0,0.00279235]
[1736886433986,0.12951688,96910.0,96909.0,0.00279235]
[1736886435096,0.0072,96910.0,96909.0,0.00279235]
[1736886435329,0.0072,96910.0,96909.0,0.00179235]
[1736886436430,0.0062,96910.0,96909.0,0.00179235]
[1736886436744,0.0102,96910.0,96909.0,0.00179235]
[1736886436939,0.0112,96910.0,96909.0,0.00179235]
[1736886437361,0.0102,96910.0,96909.0,0.00179235]
[1736886437570,0.0112,96910.0,96909.0,0.00179235]
[1736886437991,0.24394381,96910.0,96909.0,0.00179235]
[1736886438188,0.39265384,96910.0,96909.0,0.00179235]
[1736886438892,0.73419415,96910.0,96909.0,0.00179235]
[1736886439373,0.62996723,96910.0,96909.0,0.00179235]
[1736886440038,0.34654031,96910.0,96909.0,0.00179235]
[1736886440678,0.34654031,96910.0,96906.0,0.07609235]
[1736886440896,0.34654031,96910.0,96907.0,0.51699192]
[1736886441102,0.005,96910.0,96907.0,0.51699192]
[1736886441338,0.005,96910.0,96909.0,0.206379]
[1736886441764,0.004,96910.0,96909.0,0.206379]
[1736886441976,0.004,96910.0,96906.0,0.206385]
[1736886442184,0.004,96910.0,96905.0,0.0017892]
[1736886442677,0.0008545,96922.0,96905.0,0.0017892]
[1736886442886,0.004,96910.0,96905.0,0.0017892]
[1736886443120,0.206353,96921.0,96906.0,0.207385]
[1736886443343,0.206353,96921.0,96906.0,0.001]
[1736886443549,0.206353,96921.0,96906.0,0.206385]
[1736886443691,0.0008545,96922.0,96907.0,0.0774]
[1736886443891,0.2477929,96921.0,96907.0,0.0774]
[1736886444333,0.0012898,96920.0,96907.0,0.0774]
[1736886444749,0.206367,96915.0,96907.0,0.0774]
[1736886445338,0.206374,96912.0,96907.0,0.0774]
[1736886446345,0.206374,96912.0,96907.0,0.07919445]
[1736886446621,0.207374,96912.0,96907.0,0.07919445]
[1736886446787,0.0413741,96911.0,96907.0,0.07919445]
[1736886447463,0.0413741,96911.0,96907.0,0.08019445]
[1736886448248,0.001,96912.0,96907.0,0.08019445]
[1736886449125,0.001,96912.0,96907.0,0.07919445]
[1736886449295,0.206363,96917.0,96907.0,0.07919445]
[1736886449599,0.206363,96917.0,96907.0,0.08019445]
[1736886450066,0.0012899,96919.0,96907.0,0.07919445]
[1736886450326,0.001,96912.0,96907.0,0.08019445]
[1736886450558,0.206356,96920.0,96907.0,0.08019445]
[1736886450775,0.206356,96920.0,96907.0,0.07919445]
[1736886451009,0.206364,96916.0,96907.0,0.07919445]
[1736886451241,0.206357,96919.0,96907.0,0.07919445]
[1736886451460,0.0008545,96922.0,96907.0,0.07919445]
[1736886451461,0.0208066,96918.0,96907.0,0.07919445]
[1736886451692,0.206353,96921.0,96907.0,0.07919445]
[1736886451926,0.206353,96921.0,96907.0,0.28557545]
[1736886452153,0.206353,96921.0,96907.0,0.07919445]
[1736886452406,0.206353,96921.0,96907.0,0.28557645]
[1736886452644,0.003,96917.0,96908.0,0.0774]
[1736886452877,0.0021442,96922.0,96908.0,0.21825403]
[1736886452878,0.0008545,96922.0,96908.0,0.21825403]
[1736886453105,0.0008545,96922.0,96920.0,0.0479]
[1736886453322,0.002,96921.0,96920.0,0.404255]
[1736886453523,0.002,96921.0,96920.0,0.50848192]
[1736886453726,0.006,96921.0,96920.0,0.67800221]
[1736886454743,0.006,96921.0,96920.0,0.58588192]
[1736886455117,0.0008545,96922.0,96920.0,0.58588192]
[1736886455329,0.0008545,96922.0,96921.0,0.206353]
[1736886455534,0.0008545,96922.0,96920.0,0.14705415]
[1736886455773,0.0008545,96922.0,96921.0,0.206353]
[1736886456210,0.0008545,96922.0,96920.0,0.1253]
[1736886456448,0.0008545,96922.0,96920.0,0.1273]
[1736886456650,0.0008545,96922.0,96921.0,0.001]
[1736886457187,0.0008545,96922.0,96921.0,0.003]
[1736886457589,0.0008545,96922.0,96921.0,0.10722692]
[1736886457788,0.0008545,96922.0,96921.0,0.32061992]
[1736886458043,0.0008545,96922.0,96921.0,0.36851992]
[1736886458903,0.0018545,96922.0,96921.0,0.36851992]
[1736886459065,0.0018545,96922.0,96921.0,0.38675714]
[1736886459271,0.0018545,96922.0,96921.0,0.38975714]
[1736886459792,0.0018545,96922.0,96921.0,0.38775714]
[1736886460027,0.0018545,96922.0,96921.0,0.39802231]
[1736886460566,0.0018545,96922.0,96921.0,0.40002231]
[1736886461965,0.0018545,96922.0,96921.0,0.39198231]
[1736886465093,0.0018545,96922.0,96921.0,0.54198231]
[1736886465342,0.0018545,96922.0,96921.0,0.71938231]
[1736886465963,0.0018545,96922.0,96921.0,0.71738231]
[1736886466100,0.0018545,96922.0,96921.0,0.72238231]
[1736886466309,0.0028545,96922.0,96921.0,0.82760923]
[1736886466719,0.0018545,96922.0,96921.0,0.82160923]
[1736886466922,0.0028545,96922.0,96921.0,0.82860923]
[1736886468017,0.0028545,96922.0,96921.0,0.62438231]
[1736886471109,0.0028545,96922.0,96921.0,0.23752692]
[1736886471742,0.0008545,96922.0,96921.0,0.22952692]
[1736886472199,0.0008545,96922.0,96921.0,0.23352692]
[1736886472403,0.0008545,96922.0,96921.0,0.25417255]
[1736886472613,0.0018545,96922.0,96921.0,0.30689648]
[1736886473865,0.206322,96936.0,96930.0,0.497291]
[1736886474026,0.3291253,96940.0,96930.0,0.497291]
[1736886474303,0.00014824,96940.0,96936.0,0.206321]
[1736886474518,0.00014824,96940.0,96936.0,0.412642]
[1736886474722,0.00014824,96940.0,96937.0,0.10422692]
[1736886474869,0.00014824,96940.0,96939.0,0.1979]